bitfinex-derivatives/quotes_ETHF0:USTF0_20210402
["timestamp","ask_amount","ask_price","bid_price","bid_amount"]
[1617365247642,30.90475,2003.5,2003.4,152.25043237]
[1617365249243,111.90975,2003.5,2003.4,152.25043237]
[1617365250748,113.57705,2003.5,2003.4,152.25043237]
[1617365251150,32.57205,2003.5,2003.4,152.25043237]
[1617365252050,31.6050745,2003.5,2003.4,152.25043237]
[1617365252453,31.57595,2003.5,2003.4,152.25043237]
[1617365252852,31.6050745,2003.5,2003.4,152.25043237]
[1617365253053,1.6964245,2003.5,2003.4,152.25043237]
[1617365253453,31.6050745,2003.5,2003.4,152.25043237]
[1617365253655,34.5120245,2003.5,2003.4,152.13353237]
[1617365254254,96.1834245,2003.5,2003.4,151.88853237]
[1617365254454,96.1543,2003.5,2003.4,151.73383237]
[1617365255056,96.18342416,2003.5,2003.4,151.73383237]
[1617365256259,34.51202416,2003.5,2003.4,151.73383237]
[1617365258359,34.9499702,2003.5,2003.4,151.73383237]
[1617365258769,34.4829,2003.5,2003.4,151.73383237]
[1617365258972,33.4868,2003.5,2003.4,151.73383237]
[1617365260960,33.54511791,2003.5,2003.4,151.73383237]
[1617365261960,67.3027,2003.4,2003.0,151.73383237]
[1617365262361,67.33185884,2003.4,2003.0,151.73383237]
[1617365262761,29.93780891,2003.3,2003.0,151.73383237]
[1617365263761,2.90695,2003.1,2003.0,151.73383237]
[1617365265562,32.8156,2003.1,2003.0,151.73383237]
[1617365266363,113.3283,2003.1,2003.0,151.73383237]
[1617365269872,113.38672637,2003.1,2003.0,151.73383237]
[1617365275686,32.87402637,2003.1,2003.0,150.75383237]
[1617365275885,34.16852637,2003.1,2003.0,150.75383237]
[1617365276785,34.1101,2003.1,2003.0,150.75383237]
[1617365278188,34.1101,2003.1,2003.0,150.07583237]
[1617365278989,34.57758431,2003.1,2003.0,150.07583237]
[1617365279391,34.1101,2003.1,2003.0,150.07583237]
[1617365279790,34.81134698,2003.1,2003.0,150.07583237]
[1617365281194,34.1101,2003.1,2003.0,147.17383237]
[1617365281393,34.1101,2003.1,2003.0,145.96623237]
[1617365282799,34.1101,2003.1,2003.0,145.90293237]
[1617365283993,32.8156,2003.1,2003.0,145.90293237]
[1617365287699,102.4115,2003.1,2003.0,145.90293237]
[1617365289097,101.4138,2003.1,2003.0,145.90293237]
[1617365290799,101.47215381,2003.1,2003.0,145.90293237]
[1617365291499,101.4138,2003.1,2003.0,145.90293237]
[1617365292300,101.47213005,2003.1,2003.0,145.90293237]
[1617365293202,101.44296318,2003.1,2003.0,145.90293237]
[1617365293604,0.02916318,2003.1,2003.0,145.90293237]
[1617365293804,0.02916112,2003.2,2003.0,148.80988237]
[1617365294006,0.02916112,2003.2,2003.0,150.80988237]
[1617365294204,0.02915791,2003.4,2003.0,150.80988237]
[1617365294606,0.02915583,2003.5,2003.0,150.80988237]
[1617365295005,0.02915605,2003.6,2003.0,150.80988237]
[1617365295313,0.02915586,2003.7,2003.0,150.80988237]
[1617365295915,0.02915586,2003.7,2003.6,2.90695]
[1617365296107,2.99681759,2003.9,2003.6,4.34255]
[1617365296305,30.0,2003.8,2003.6,4.34255]
[1617365296506,30.0,2003.8,2003.6,6.34255]
[1617365297005,30.0,2003.8,2003.6,4.34255]
[1617365298512,30.0,2003.8,2003.6,1.93695]
[1617365301517,30.0,2003.8,2003.6,3.90875]
[1617365303121,29.0023,2003.8,2003.6,3.90875]
[1617365307832,29.0023,2003.8,2003.6,74.23785]
[1617365310129,28.0046,2003.8,2003.6,74.23785]
[1617365310929,28.0046,2003.8,2003.6,3.90875]
[1617365313433,28.0046,2003.8,2003.6,1.93695]
[1617365314633,28.0046,2003.8,2003.6,3.70035]
[1617365316442,4.38218588,2003.9,2003.6,3.70035]
[1617365316637,0.46754508,2003.8,2003.7,65.8581]
[1617365317038,0.9879,2004.3,2003.7,65.8581]
[1617365317039,0.17112795,2004.1,2003.7,65.8581]
[1617365317347,0.9879,2004.3,2003.7,65.8581]
[1617365317954,0.93499741,2004.5,2003.7,65.8581]
[1617365318137,3.84194741,2004.5,2004.4,2.90695]
[1617365318347,2.90695,2004.5,2004.4,4.63375]
[1617365318838,3.89625,2004.5,2004.4,4.63375]
[1617365319238,2.90695,2004.5,2004.4,4.63375]
[1617365319439,0.93489737,2004.7,2004.4,4.63375]
[1617365319938,1.52296048,2004.9,2004.4,4.63375]
[1617365320138,1.52296048,2004.9,2004.8,2.90695]
[1617365321540,0.93481484,2004.9,2004.8,2.90695]
[1617365321741,1.52295485,2004.9,2004.8,2.90695]
[1617365322241,0.93481484,2004.9,2004.8,2.90695]
[1617365322542,0.58812815,2004.9,2004.8,2.90695]
[1617365322941,0.9347752,2005.0,2004.8,2.90695]
[1617365323543,1.52134915,2005.1,2004.8,2.90695]
[1617365323744,1.52134915,2005.1,2005.0,66.0287]
[1617365323943,0.93462791,2005.3,2005.0,67.9011]
[1617365324142,1.65097392,2005.4,2005.2,2.90695]
[1617365324342,1.06661568,2005.4,2005.2,2.90695]
[1617365325142,0.57449138,2005.5,2005.3,2.0]
[1617365325343,1.16809429,2005.9,2005.3,2.0]
[1617365325542,1.16809429,2005.9,2005.7,72.8339]
[1617365325743,3.91685595,2006.3,2005.7,74.2519]
[1617365325744,1.16802432,2006.0,2005.7,74.2519]
[1617365326143,1.16802432,2006.0,2005.9,2.90695]
[1617365326348,1.16785962,2006.2,2005.9,2.90695]
[1617365326744,3.4857172,2006.6,2005.9,2.90695]
[1617365326945,0.9914,2006.6,2005.9,2.90695]
[1617365327145,0.9914,2006.6,2006.4,77.2852]
[1617365327345,1.006,2007.4,2006.4,77.2852]
[1617365327745,1.006,2007.4,2006.4,79.2852]
[1617365328148,1.006,2007.4,2007.3,2.90695]
[1617365328347,1.006,2007.4,2007.3,4.57285]
[1617365329150,1.006,2007.4,2007.3,1.6659]
[1617365329749,1.006,2007.4,2006.4,77.2852]
[1617365330150,31.006,2007.4,2006.9,2.90695]
[1617365330552,60.3383,2007.1,2006.9,2.90695]
[1617365330953,90.3383,2007.1,2005.7,75.3472]
[1617365331153,89.3406,2007.1,2005.7,75.3472]
[1617365334255,89.3406,2007.1,2006.7,2.90695]
[1617365334455,89.63081752,2007.1,2006.7,2.90695]
[1617365334656,89.63081752,2007.1,2005.7,75.3472]
[1617365334858,0.29021225,2006.8,2004.8,2.0]
[1617365335056,0.01451233,2006.1,2004.8,2.0]
[1617365335256,81.3779,2005.8,2004.8,2.0]
[1617365336155,81.39241475,2005.8,2005.4,2.90695]
[1617365336559,0.01451628,2005.6,2005.4,2.90695]
[1617365336759,2.85691628,2005.6,2004.3,71.1039]
[1617365336957,2.85691628,2005.6,2002.7,4.4298]
[1617365336958,0.01450576,2005.5,2002.7,4.4298]
[1617365337157,59.9866,2004.8,2002.9,82.1669]
[1617365337357,61.5588,2004.8,2002.9,82.1669]
[1617365337558,61.5588,2004.8,2003.1,2.0]
[1617365338157,60.5611,2004.8,2003.1,2.0]
[1617365338358,90.5611,2004.8,2004.7,2.90695]
[1617365338558,31.5722,2004.8,2004.7,2.90695]
[1617365341559,92.5464,2004.8,2004.7,2.90695]
[1617365342459,1.5722,2004.8,2004.7,2.90695]
[1617365342661,0.01450655,2005.2,2004.7,2.90695]
[1617365343260,30.14506552,2005.5,2004.7,2.90695]
[1617365343261,0.01450609,2005.3,2004.7,2.90695]
[1617365344061,0.01450528,2005.4,2004.7,2.90695]
[1617365344262,2.92145528,2005.4,2005.3,2.90695]
[1617365344966,62.68135528,2005.4,2005.3,2.90695]
[1617365345167,61.68365528,2005.4,2005.3,2.90695]
[1617365345367,91.68365528,2005.4,2005.3,2.90695]
[1617365345567,91.68365528,2005.4,2004.0,64.3113]
[1617365345766,93.43415528,2005.4,2004.0,64.3113]
[1617365346366,91.5104,2005.4,2005.2,2.90695]
[1617365347167,91.5104,2005.4,2004.0,64.3113]
[1617365347668,91.65547463,2005.4,2004.0,64.3113]
[1617365348067,31.89557463,2005.4,2003.2,2.0]
[1617365348267,2.90695,2004.6,2003.2,2.0]
[1617365348468,4.85655,2004.6,2003.1,2.0]
[1617365349969,30.0,2004.5,2003.1,2.0]
[1617365350369,30.0,2004.5,2004.4,2.90695]
[1617365350569,2.90695,2004.6,2004.4,2.90695]
[1617365350768,32.90695,2004.6,2004.4,2.90695]
[1617365350969,30.0,2004.5,2004.4,2.90695]
[1617365351168,31.8896,2004.5,2004.4,2.90695]
[1617365352170,30.8919,2004.5,2004.4,2.90695]
[1617365354574,30.8919,2004.5,2003.0,209.52503237]
[1617365355572,31.8753,2004.5,2003.0,209.52503237]
[1617365356372,31.8753,2004.5,2004.1,2.90695]
[1617365356872,31.8753,2004.5,2003.0,209.52503237]
[1617365357674,32.02048281,2004.5,2003.0,209.52503237]
[1617365358173,0.14518335,2004.4,2003.0,209.52503237]
[1617365358372,0.14518335,2004.4,2003.7,2.90695]
[1617365358578,32.02048189,2004.5,2003.7,2.90695]
[1617365359174,32.02048189,2004.5,2003.0,209.52503237]
[1617365360278,0.14514095,2004.4,2003.0,145.90293237]
[1617365360475,71.6673,2004.0,2003.4,2.90695]
[1617365360676,73.6715,2004.0,2003.4,2.90695]
[1617365360975,29.0023,2003.9,2003.4,2.90695]
[1617365362080,30.0089,2003.9,2003.4,2.90695]
[1617365362482,4.67505,2003.5,2003.4,2.90695]
[1617365363181,33.67735,2003.5,2003.4,2.90695]
[1617365376700,33.67735,2003.5,2003.4,2.76025]
[1617365388916,33.67735,2003.5,2003.0,145.90293237]
[1617365390216,71.9767,2003.1,2003.0,145.90293237]
[1617365390615,100.979,2003.1,2003.0,145.90293237]
[1617365390815,103.88595,2003.1,2003.0,148.80988237]
[1617365391415,32.91425,2003.1,2003.0,148.80988237]
[1617365393016,3.91195,2003.1,2003.0,148.80988237]
[1617365394216,1.005,2003.1,2003.0,148.80988237]
[1617365394418,30.0,2003.7,2003.0,148.80988237]
[1617365394818,30.0,2003.7,2003.5,2.90695]
[1617365396718,2.90695,2003.6,2003.5,2.90695]
[1617365397317,32.90695,2003.6,2003.5,2.90695]
[1617365401223,31.91005,2003.6,2003.5,2.90695]
[1617365402824,31.91005,2003.6,2003.5,1.90495]
[1617365403225,31.91005,2003.6,2003.0,145.90293237]
[1617365404629,1.91005,2003.6,2003.0,145.90293237]
[1617365404829,31.4349,2003.5,2003.2,2.90695]
[1617365405632,60.6684,2003.3,2003.2,2.90695]
[1617365405831,91.6647,2003.3,2003.2,2.90695]
[1617365406534,91.6647,2003.3,2003.0,145.90293237]
[1617365406932,32.90695,2003.1,2003.0,145.90293237]
[1617365407132,32.90695,2003.1,2003.0,144.87893237]
[1617365407333,32.90695,2003.1,2003.0,131.23273237]
[1617365407532,34.90695,2003.1,2003.0,125.98503237]
[1617365407734,34.90695,2003.1,2003.0,81.36733237]
[1617365407935,34.90695,2003.1,2003.0,80.37433237]
[1617365408133,33.91005,2003.1,2003.0,80.11313237]
[1617365408333,33.91005,2003.1,2003.0,79.85483237]
[1617365408535,33.91005,2003.1,2003.0,50.97223237]
[1617365408734,33.91005,2003.1,2003.0,50.76433237]
[1617365409534,33.91005,2003.1,2003.0,35.89343237]
[1617365409734,33.91005,2003.1,2003.0,27.02863237]
[1617365411036,33.91005,2003.1,2003.0,26.17253237]
[1617365412039,33.91005,2003.1,2003.0,24.69963237]
[1617365412239,33.91005,2003.1,2003.0,23.48363237]
[1617365412638,33.91005,2003.1,2003.0,18.00923237]
[1617365412840,34.60746376,2003.1,2003.0,13.51863237]
[1617365413038,34.60746376,2003.1,2003.0,13.13363237]
[1617365413241,34.60746376,2003.1,2003.0,12.16103237]
[1617365413446,33.91005,2003.1,2003.0,12.16103237]
[1617365413839,34.6074676,2003.1,2003.0,12.16103237]
[1617365414040,34.6074676,2003.1,2003.0,5.31603237]
[1617365414242,34.6074676,2003.1,2003.0,4.22333237]
[1617365414440,34.6074676,2003.1,2003.0,2.38963237]
[1617365414641,33.91005,2003.1,2001.4,13.4973]
[1617365414843,2.90695,2001.5,2001.4,13.4973]
[1617365415042,4.86655,2001.5,2001.4,13.4973]
[1617365415244,3.86965,2001.5,2001.4,13.4973]
[1617365415944,4.87835,2001.5,2001.4,13.4973]
[1617365416144,34.87835,2001.5,2001.4,13.4973]
[1617365417345,34.87835,2001.5,2001.3,71.1459]
[1617365417346,34.87835,2001.5,2001.3,69.4934]
[1617365417946,33.86965,2001.5,2001.3,69.4934]
[1617365418845,33.84965,2001.5,2001.3,69.4934]
[1617365420852,33.84965,2001.5,2001.4,2.90695]
[1617365421754,3.84965,2001.5,2001.4,2.90695]
[1617365421952,27.09305,2001.4,2001.3,69.4934]
[1617365422152,26.09615,2001.4,2001.3,69.4934]
[1617365422951,26.09615,2001.4,2001.3,72.40035]
[1617365423152,26.09615,2001.4,2001.3,69.4934]
[1617365424252,1.89005,2001.5,2001.3,69.4934]
[1617365429159,0.89315,2001.5,2001.3,69.4934]
[1617365430759,0.89315,2001.5,2001.2,2.90695]
[1617365433361,0.88315,2001.5,2001.2,2.90695]
[1617365436168,29.88625,2001.8,2001.2,2.90695]
[1617365436970,2.90695,2001.3,2001.2,2.90695]
[1617365442381,3.91295,2001.3,2001.2,2.90695]
[1617365443180,2.91605,2001.3,2001.2,2.90695]
[1617365447689,1.91005,2001.3,2001.2,2.90695]
[1617365448888,2.90765,2001.3,2001.2,2.90695]
[1617365450090,1.91005,2001.3,2001.2,2.90695]
[1617365450291,59.2131,2001.4,2001.2,2.90695]
[1617365453093,2.90695,2001.3,2001.2,2.90695]
[1617365453293,4.40065,2001.3,2001.2,2.90695]
[1617365454593,34.40065,2001.3,2001.2,2.90695]
[1617365454794,34.40065,2001.3,2001.2,2.48275]
[1617365454994,34.40065,2001.3,2001.2,1.25285]
[1617365456797,34.40065,2001.3,2001.2,0.01635]
[1617365456997,72.0562,2001.2,2001.0,14.4608]
[1617365457197,71.0593,2001.2,2001.0,13.4549]
[1617365457599,30.0,2001.1,2001.0,13.4549]
[1617365460708,30.0,2001.1,2001.0,11.4528]
[1617365461107,71.0593,2001.2,2001.0,11.4528]
[1617365461306,101.0593,2001.2,2001.0,11.4528]
[1617365462111,2.90695,2001.3,2001.0,11.4528]
[1617365462908,72.9787,2001.8,2001.0,11.4528]
[1617365463107,72.9787,2001.8,2001.7,2.90695]
[1617365463309,71.9798,2001.8,2001.7,2.90695]
[1617365464308,2.50014754,2001.9,2001.7,2.90695]
[1617365465911,3.91815,2002.2,2001.7,2.90695]
[1617365466112,2.90695,2002.2,2001.7,2.90695]
[1617365466310,1.90805,2002.2,2001.7,2.90695]
[1617365467111,1.90805,2002.2,2002.1,2.90695]
[1617365467713,66.53973381,2002.7,2002.1,2.90695]
[1617365467913,66.53973381,2002.7,2002.1,4.55925]
[1617365468115,0.14554263,2002.6,2002.1,4.55925]
[1617365469114,0.14554263,2002.6,2002.5,2.90695]
[1617365470214,65.83202788,2002.7,2002.5,2.90695]
[1617365470415,0.29129834,2002.6,2002.5,2.90695]
[1617365471116,3.19824834,2002.6,2002.5,2.90695]
[1617365471914,3.19824834,2002.6,2002.1,1.6523]
[1617365472515,30.2913057,2002.5,2001.7,14.366]
[1617365473114,0.29132392,2002.4,2001.9,2.90695]
[1617365473314,29.7585422,2002.5,2001.9,2.90695]
[1617365473919,0.46617914,2002.3,2001.9,2.90695]
[1617365474217,0.46617863,2002.2,2001.9,2.90695]
[1617365475117,2.90695,2002.0,2001.9,2.90695]
[1617365475318,3.90865,2002.0,2001.9,2.90695]
[1617365476118,0.46617863,2002.2,2001.9,4.86985]
[1617365476318,0.05826712,2002.0,2001.9,4.86985]
[1617365476623,0.05826242,2002.3,2001.9,4.86985]
[1617365477020,0.05826242,2002.3,2001.9,6.86985]
[1617365477220,1.96631242,2002.4,2002.2,2.90695]
[1617365477623,66.00702416,2002.7,2002.2,2.90695]
[1617365478222,65.54094263,2002.7,2002.2,2.90695]
[1617365478623,66.00701382,2002.7,2002.2,2.90695]
[1617365479023,0.13604263,2002.7,2002.2,2.90695]
[1617365479224,0.83605089,2002.7,2002.6,2.90695]
[1617365479423,30.83605089,2002.7,2001.7,14.366]
[1617365479623,32.06234263,2002.7,2001.7,14.366]
[1617365480024,0.46672467,2002.2,2001.7,14.366]
[1617365480428,0.46675175,2002.1,2001.7,14.366]
[1617365480625,1.47135175,2002.1,2001.7,14.366]
[1617365481226,2.90695,2001.9,2001.8,2.90695]
[1617365481627,32.37477467,2001.9,2001.8,2.90695]
[1617365481830,32.37477467,2001.9,2001.7,14.366]
[1617365482029,59.8902,2001.8,2001.7,14.366]
[1617365482229,60.3572482,2001.8,2001.7,14.366]
[1617365482630,59.8902,2001.8,2001.7,14.366]
[1617365483031,60.35728696,2001.8,2001.7,14.366]
[1617365483631,89.82511163,2001.8,2001.7,14.366]
[1617365484142,89.35802467,2001.8,2001.7,14.366]
[1617365484336,88.35912467,2001.8,2001.7,14.366]
[1617365485435,88.35912467,2001.8,2001.7,13.386]
[1617365486036,30.16849381,2001.8,2001.7,12.886]
[1617365486434,29.46782467,2001.8,2001.7,12.886]
[1617365486636,2.90695,2001.9,2001.7,12.886]
[1617365486840,0.4670506,2001.8,2001.7,14.5981]
[1617365487238,0.16857385,2002.4,2001.7,17.50505]
[1617365487640,2.6352179,2002.7,2001.8,2.0]
[1617365488240,2.6352179,2002.7,2001.7,17.50505]
[1617365488639,0.13604263,2002.7,2001.7,17.50505]
[1617365488839,0.13604263,2002.7,2001.7,19.50505]
[1617365489239,3.04299263,2002.7,2002.6,2.90695]
[1617365489939,5.09774569,2002.7,2002.6,2.90695]
[1617365490740,3.04299263,2002.7,2002.6,2.90695]
[1617365491340,2.04409263,2002.7,2002.6,2.90695]
[1617365491541,4.97826438,2002.7,2002.6,2.90695]
[1617365491944,2.04409263,2002.7,2002.6,2.90695]
[1617365492142,33.98981389,2002.7,2002.6,2.90695]
[1617365492544,37.62625589,2002.7,2002.6,2.90695]
[1617365493044,36.04344262,2002.7,2002.6,2.90695]
[1617365493245,37.62623776,2002.7,2002.6,2.90695]
[1617365493646,39.6798131,2002.7,2002.6,2.90695]
[1617365493845,40.6635131,2002.7,2002.6,2.90695]
[1617365494246,40.6132131,2002.7,2002.6,2.90695]
[1617365494647,10.6132131,2002.7,2002.6,2.90695]
[1617365495346,40.6132131,2002.7,2002.6,2.90695]
[1617365495547,40.6132131,2002.7,2002.6,1.91335]
[1617365495748,40.6132131,2002.7,2001.8,2.0]
[1617365496149,0.93750693,2002.1,2001.8,2.0]
[1617365497049,59.8555,2002.0,2001.8,2.0]
[1617365497250,59.8555,2002.0,2001.9,2.90695]
[1617365497649,60.61488322,2002.0,2001.9,2.90695]
[1617365498349,59.66548322,2002.0,2001.9,2.90695]
[1617365505259,33.66633322,2002.0,2001.9,0.93605]
[1617365505459,33.66633322,2002.0,2001.7,8.961]
[1617365505660,34.60383268,2002.0,2001.7,8.961]
[1617365505860,3.10626025,2001.9,2001.7,8.961]
[1617365506059,3.10626025,2001.9,2001.7,7.9739]
[1617365506261,1.17069097,2001.8,2001.7,7.4939]
[1617365506461,31.17069097,2001.8,2001.7,7.4939]
[1617365506662,30.0,2001.8,2001.7,7.4939]
[1617365507065,37.58738531,2001.8,2001.7,7.3189]
[1617365508367,37.58738531,2001.8,2001.7,5.3339]
[1617365508775,35.53647488,2001.8,2001.7,5.3339]
[1617365508970,35.53647488,2001.8,2001.7,3.827]
[1617365509169,37.58778693,2001.8,2001.7,1.6511]
[1617365509371,78.0353,2001.7,2001.3,17.02055]
[1617365509770,0.93634541,2001.4,2001.3,17.02055]
[1617365510372,0.93654538,2001.5,2001.3,17.02055]
[1617365510972,1.92104538,2001.5,2001.3,17.02055]
[1617365511371,3.65860162,2001.4,2001.3,17.02055]
[1617365511571,0.75165162,2001.4,2001.3,17.02055]
[1617365512172,2.86482241,2001.6,2001.3,17.02055]
[1617365513272,0.93650629,2001.5,2001.3,16.05055]
[1617365513471,2.90695,2001.4,2001.3,2.90695]
[1617365513680,33.84301604,2001.4,2001.0,200.0]
[1617365513872,30.0,2001.2,2001.0,200.0]
[1617365514085,30.0,2001.2,2001.0,195.3698]
[1617365514273,32.90780456,2001.2,2001.0,195.3698]
[1617365514672,0.80129621,2001.1,2001.0,195.3698]
[1617365514871,0.80129621,2001.1,2001.0,194.3847]
[1617365515074,0.80129621,2001.1,2001.0,193.5427]
[1617365515472,3.70824621,2001.1,2001.0,193.5427]
[1617365515975,4.64236774,2001.1,2001.0,193.3897]
[1617365516273,3.70824621,2001.1,2001.0,193.3897]
[1617365516474,33.70824621,2001.1,2001.0,193.3897]
[1617365517175,33.70824621,2001.1,2001.0,192.5097]
[1617365517376,34.64222519,2001.1,2001.0,191.5067]
[1617365517778,34.64222519,2001.1,2001.0,190.5067]
[1617365517976,34.64222519,2001.1,2001.0,189.7198]
[1617365518177,33.70824621,2001.1,2001.0,188.5328]
[1617365518376,33.70824621,2001.1,2001.0,182.5302]
[1617365518577,33.70824621,2001.1,2001.0,181.5502]
[1617365518777,34.87482674,2001.1,2001.0,181.5502]
[1617365519579,34.87482674,2001.1,2001.0,181.1385]
[1617365519780,33.70824621,2001.1,2001.0,180.8342]
[1617365520380,35.70824621,2001.1,2001.0,180.8342]
[1617365520581,41.34265067,2001.1,2001.0,180.8342]
[1617365520883,39.29882459,2001.1,2001.0,180.8342]
[1617365521485,39.29882459,2001.1,2001.0,176.22]
[1617365521696,41.34267794,2001.1,2001.0,172.7614]
[1617365521881,39.29882459,2001.1,2001.0,172.6984]
[1617365522081,39.29882459,2001.1,2001.0,172.1942]
[1617365522280,39.29882459,2001.1,2001.0,171.1871]
[1617365522481,39.29882459,2001.1,2001.0,170.9101]
[1617365522681,39.29882459,2001.1,2001.0,166.9614]
[1617365523081,39.29882459,2001.1,2001.0,165.9654]
[1617365523281,39.29882459,2001.1,2001.0,162.2026]
[1617365523482,39.29882459,2001.1,2001.0,161.2176]
[1617365523882,39.29882459,2001.1,2001.0,160.2186]
[1617365524083,39.29882459,2001.1,2001.0,152.9668]
[1617365524284,42.21656822,2001.1,2001.0,151.9768]
[1617365524684,43.38154296,2001.1,2001.0,150.9163]
[1617365524885,41.38154296,2001.1,2001.0,150.9163]
[1617365525285,37.29882459,2001.1,2001.0,150.9163]
[1617365525487,37.29882459,2001.1,2001.0,149.4324]
[1617365525685,37.29882459,2001.1,2001.0,147.9564]
[1617365525887,39.29882459,2001.1,2001.0,147.4372]
[1617365526486,39.29882459,2001.1,2001.0,147.1853]
[1617365526689,39.29882459,2001.1,2001.0,146.4533]
[1617365527490,39.29882459,2001.1,2001.0,145.4433]
[1617365528094,45.1058531,2001.1,2000.8,3.0]
[1617365528291,45.1058531,2001.1,2000.8,0.758]
[1617365528492,32.0,2000.9,2000.8,0.4373]
[1617365528893,40.43919006,2000.9,2000.8,0.4373]
[1617365529294,32.75623668,2000.9,2000.8,0.4373]
[1617365529492,32.75623668,2000.9,1999.2,2.90695]
[1617365529693,34.67756116,2000.9,1999.2,2.90695]
[1617365529892,73.2783,1999.3,1999.2,1.84515]
[1617365530999,74.2815,1999.3,1999.2,1.84515]
[1617365532003,74.2815,1999.3,1999.2,3.84515]
[1617365532410,1.0015,2000.4,1999.2,3.84515]
[1617365532629,66.2597,2000.2,1999.2,5.12625]
[1617365533602,2.90695,1999.9,1999.8,2.90695]
[1617365533800,2.90695,1999.9,1999.8,4.33825]
[1617365534608,2.90695,1999.9,1999.8,1.4313]
[1617365534807,2.90695,1999.9,1999.1,14.6477]
[1617365535002,76.5993,1999.8,1999.1,14.6477]
[1617365535601,76.5993,1999.8,1999.6,2.90695]
[1617365536602,77.6135,1999.8,1999.4,1.5275]
[1617365536801,77.6135,1999.8,1999.1,14.6477]
[1617365537604,77.6135,1999.8,1999.2,2.90695]
[1617365537803,1.0142,1999.8,1999.2,2.90695]
[1617365538008,0.02899179,2000.2,1999.2,2.90695]
[1617365538206,75.2033,2000.1,1999.2,4.78595]
[1617365539506,2.90695,1999.3,1999.2,4.78595]
[1617365540116,2.90695,1999.3,1999.2,2.90695]
[1617365540909,73.2318,2000.0,1999.2,2.90695]
[1617365541106,73.2318,2000.0,1999.2,4.44335]
[1617365541707,73.2318,2000.0,1999.9,2.90695]
[1617365542806,2.90695,2000.1,1999.9,2.90695]
[1617365543006,0.9927,2000.9,1999.9,2.90695]
[1617365543207,0.9927,2000.9,1999.9,4.90695]
[1617365543607,3.89965,2000.9,2000.8,2.90695]
[1617365543811,3.89965,2000.9,2000.8,4.30225]
[1617365544008,6.40102576,2000.9,2000.8,4.30225]
[1617365544210,2.50137576,2000.9,2000.8,4.30225]
[1617365544410,1.50317576,2000.9,2000.8,4.30225]
[1617365545212,61.2892,2001.8,2000.8,6.30225]
[1617365545610,61.2892,2001.8,2001.7,2.90695]
[1617365545811,61.2892,2001.8,2001.7,4.56725]
[1617365546015,1.04143352,2002.1,2001.7,4.56725]
[1617365547015,30.0,2002.0,2001.7,4.56725]
[1617365547314,30.02902728,2002.0,2001.7,4.56725]
[1617365547514,78.7562,2001.8,2001.7,4.56725]
[1617365547713,81.66315,2001.8,2001.7,4.56725]
[1617365547914,81.66315,2001.8,2001.7,4.31425]
[1617365549216,2.90695,2001.8,2001.7,4.31425]
[1617365551321,1.90875,2001.8,2001.7,4.31425]
[1617365552119,70.89355,2001.8,2001.7,4.31425]
[1617365552319,1.90875,2001.8,2001.7,4.31425]
[1617365555724,2.90695,2002.2,2001.7,4.31425]
[1617365555924,76.2607,2002.4,2001.7,4.31425]
[1617365557326,76.2607,2002.4,2001.7,6.31425]
[1617365557726,2.90695,2002.5,2002.3,2.90695]
[1617365557926,2.90695,2002.5,2002.3,4.15715]
[1617365558526,1.90875,2002.5,2002.3,4.15715]
[1617365560927,1.90875,2002.5,2002.3,2.90695]
[1617365561129,60.89105,2002.5,2002.3,2.90695]
[1617365562531,60.92011939,2002.5,2002.3,2.90695]
[1617365562731,60.92011939,2002.5,2000.9,29.747]
[1617365562732,0.02906646,2002.4,2000.9,29.747]
[1617365562932,62.7176,2001.8,2000.9,29.747]
[1617365563132,62.7176,2001.8,2000.9,27.747]
[1617365563730,62.7176,2001.8,2001.5,2.90695]
[1617365565533,61.7194,2001.8,2001.5,2.90695]
[1617365565734,2.90695,2001.6,2001.5,2.90695]
[1617365566535,32.90695,2001.6,2000.9,27.747]
[1617365566744,30.0,2001.4,2000.9,27.747]
[1617365566957,31.01,2001.4,2000.9,27.747]
[1617365567744,2.90695,2001.0,2000.9,27.747]
[1617365570338,2.90695,2001.0,2000.9,14.1595]
[1617365570538,34.59845,2001.0,2000.9,13.1578]
[1617365572341,31.90875,2001.0,2000.9,13.1578]
[1617365572941,35.33165,2001.0,2000.3,2.90695]
[1617365573142,63.5878,2000.9,1999.8,14.4259]
[1617365573347,64.60757292,2000.9,1999.8,14.4259]
[1617365573541,64.60757292,2000.9,1999.8,13.9529]
[1617365573942,4.77105,1999.9,1999.8,13.9529]
[1617365575044,1.8641,1999.9,1999.8,13.9529]
[1617365575244,30.0,2000.8,1999.8,13.9529]
[1617365575845,32.90695,1999.9,1999.8,13.9529]
[1617365577947,2.90695,1999.9,1999.8,13.9529]
[1617365578147,0.02896117,2000.7,1999.8,15.9372]
[1617365578348,57.2756,2000.4,1999.8,15.9372]
[1617365578949,87.2756,2000.4,1999.8,15.9372]
[1617365579151,30.0,2000.4,1999.8,15.9372]
[1617365579350,29.0018,2000.4,1999.8,1.9843]
[1617365579551,63.9838,1999.8,1999.0,141.93]
[1617365579749,66.8561,1999.8,1999.0,141.93]
[1617365579951,66.8561,1999.8,1999.2,2.90695]
[1617365580149,66.8561,1999.8,1999.2,1.90685]
[1617365580349,29.0018,1999.7,1999.2,1.04655]
[1617365580550,66.8561,1999.8,1999.2,1.04655]
[1617365580750,65.8451,1999.8,1999.2,1.04655]
[1617365580950,63.9838,1999.8,1999.2,1.04655]
[1617365581652,30.0,1999.7,1999.2,1.04655]
[1617365581867,2.90695,1999.3,1999.2,1.04655]
[1617365582354,63.9838,1999.8,1999.2,1.04655]
[1617365582760,30.0,1999.7,1999.2,1.04655]
[1617365583859,2.90695,1999.3,1999.0,144.83695]
[1617365585959,2.90695,1999.1,1999.0,144.83695]
[1617365586361,1.90875,1999.1,1999.0,144.83695]
[1617365587261,2.90945,1999.1,1999.0,144.83695]
[1617365587662,1.90875,1999.1,1999.0,144.83695]